fUST/lending_fUST_20240503
["ID","MTS","AMOUNT","RATE_DAILY","PERIOD"]
[325349559,1714746650518,-500.0,0.00027945,2]
[325349561,1714746650527,-500.0,0.00027945,2]
[325349563,1714746650537,-1789.08,0.00027945,2]
[325349565,1714746650546,-500.0,0.00027945,2]
[325349567,1714746650555,-500.0,0.00027945,2]
[325349569,1714746650565,-500.0,0.00027945,2]
[325349571,1714746650574,-500.0,0.00027945,2]
[325349573,1714746650583,-1796.56,0.00027945,2]
[325349575,1714746650592,-1712.16,0.00027945,2]
[325349577,1714746650601,-222.01136768,0.00027945,2]
[325349579,1714746650611,-3412.01,0.00027945,2]
[325349581,1714746650620,-500.0,0.00027945,2]
[325349583,1714746650630,-8003.99,0.00027945,2]
[325349585,1714746650639,-1643.89,0.00027945,2]
[325349587,1714746650648,-212.42507563,0.00027945,2]
[325349589,1714746650657,-11017.69,0.00027945,2]
[325349591,1714746650678,-500.0,0.00027945,2]
[325349593,1714746650687,-500.0,0.00027945,2]
[325349595,1714746650697,-500.0,0.00027945,2]
[325349597,1714746650706,-500.0,0.00027945,2]
[325349599,1714746650717,-500.0,0.00027945,2]
[325349601,1714746650726,-500.0,0.00027945,2]
[325349603,1714746650736,-821.84,0.00027945,2]
[325349605,1714746650746,-500.0,0.00027945,2]
[325349607,1714746650757,-500.0,0.00027945,2]
[325349609,1714746650767,-500.0,0.00027945,2]
[325349611,1714746650777,-1104.96,0.00027945,2]
[325349613,1714746650787,-1081.86,0.00027945,2]
[325349615,1714746650797,-500.0,0.00027945,2]
[325349617,1714746650807,-540.68,0.00027945,2]
[325349619,1714746650817,-500.0,0.00027945,2]
[325349621,1714746650827,-500.0,0.00027945,2]
[325349623,1714746650837,-12488.8,0.00027945,2]
[325349626,1714746650847,-932.89,0.00027945,2]
[325349628,1714746650858,-656.2,0.00027945,2]
[325349630,1714746650868,-500.0,0.00027945,2]
[325349632,1714746650878,-500.0,0.00027945,2]
[325349633,1714746650888,-500.0,0.00027945,2]
[325349635,1714746650898,-500.0,0.00027945,2]
[325349637,1714746650907,-1159.79,0.00027945,2]
[325349639,1714746650918,-500.0,0.00027945,2]
[325349641,1714746650927,-500.0,0.00027945,2]
[325349644,1714746650937,-1691.08,0.00027945,2]
[325349645,1714746650946,-500.0,0.00027945,2]
[325349648,1714746650956,-523.47,0.00027945,2]
[325349650,1714746650965,-500.0,0.00027945,2]
[325349652,1714746650975,-2199.0,0.00027945,2]
[325349653,1714746650984,-5883.66,0.00027945,2]
[325349655,1714746650994,-500.0,0.00027945,2]
[325349657,1714746651003,-7123.91,0.00027945,2]
[325349659,1714746651013,-500.0,0.00027945,2]
[325349661,1714746651023,-500.0,0.00027945,2]
[325349663,1714746651033,-500.0,0.00027945,2]
[325349666,1714746651042,-671.67,0.00027945,2]
[325349667,1714746651052,-500.0,0.00027945,2]
[325349669,1714746651061,-500.0,0.00027945,2]
[325349671,1714746651071,-638.9,0.00027945,2]
[325349673,1714746651080,-500.0,0.00027945,2]
[325349675,1714746651089,-6783.24092666,0.00027945,2]
[325349755,1714746651891,-18062.38305277,0.00027945,2]
[325349758,1714746651904,-10434.67529607,0.00027945,2]
[325349760,1714746651919,-13295.5907245,0.00027945,2]
[325349762,1714746651928,-1840.61,0.00027945,2]
[325349764,1714746651939,-8336.7,0.00027945,2]
[325349766,1714746651948,-1214.07,0.00027945,2]
[325349768,1714746651960,-500.0,0.00027945,2]
[325349769,1714746651969,-500.0,0.00027945,2]
[325349771,1714746651979,-514.74,0.00027945,2]
[325349773,1714746651989,-500.0,0.00027945,2]
[325349775,1714746651999,-500.0,0.00027945,2]
[325349777,1714746652009,-500.0,0.00027945,2]
[325349779,1714746652019,-667.85,0.00027945,2]
[325349781,1714746652029,-500.0,0.00027945,2]
[325349783,1714746652039,-2392.37,0.00027945,2]
[325349785,1714746652048,-2917.97,0.00027945,2]
[325349787,1714746652058,-863.42,0.00027945,2]
[325349789,1714746652068,-500.0,0.00027945,2]
[325349791,1714746652077,-500.0,0.00027945,2]
[325349793,1714746652086,-752.33,0.00027945,2]
[325349795,1714746652096,-500.0,0.00027945,2]
[325349797,1714746652106,-1215.8,0.00027945,2]
[325349799,1714746652116,-706.94,0.00027945,2]
[325349801,1714746652125,-501.84639459,0.00027945,2]
[325349803,1714746652136,-500.0,0.00027945,2]
[325349805,1714746652146,-501.95858455,0.00027945,2]
[325349807,1714746652156,-1340.1,0.00027945,2]
[325349809,1714746652165,-1609.91,0.00027945,2]
[325349811,1714746652176,-500.0,0.00027945,2]
[325349813,1714746652186,-2655.79,0.00027945,2]
[325349815,1714746652195,-509.39,0.00027945,2]
[325349816,1714746652206,-500.0,0.00027945,2]
[325349818,1714746652216,-2308.48,0.00027945,2]
[325349820,1714746652225,-2811.13421632,0.00027945,2]
[325349822,1714746652245,-4264.80578368,0.00027945,2]
[325349824,1714746652255,-500.0,0.00027945,2]
[325349826,1714746652265,-500.0,0.00027945,2]
[325349828,1714746652277,-150.52011141,0.00027945,2]
[325349830,1714746652287,-500.0,0.00027945,2]
[325349832,1714746652296,-500.0,0.00027945,2]
[325349834,1714746652306,-1381.8,0.00027945,2]
[325349836,1714746652316,-389.26375615,0.00027945,2]
[325349838,1714746652327,-500.0,0.00027945,2]
[325349840,1714746652336,-500.0,0.00027945,2]
[325349842,1714746652346,-500.0,0.00027945,2]
[325349844,1714746652355,-500.0,0.00027945,2]
[325349846,1714746652372,-587.38,0.00027945,2]
[325349848,1714746652382,-500.0,0.00027945,2]
[325349850,1714746652392,-546.08,0.00027945,2]
[325349852,1714746652401,-500.0,0.00027945,2]
[325349854,1714746652410,-500.0,0.00027945,2]
[325349856,1714746652421,-500.0,0.00027945,2]
[325349858,1714746652432,-908.33,0.00027945,2]
[325349860,1714746652441,-154.27414398,0.00027945,2]
[325349862,1714746652453,-500.0,0.00027945,2]
[325349863,1714746652462,-500.0,0.00027945,2]
[325349865,1714746652472,-500.0,0.00027945,2]
[325349867,1714746652482,-500.0,0.00027945,2]
[325349869,1714746652491,-500.0,0.00027945,2]
[325349871,1714746652500,-500.0,0.00027945,2]
[325349873,1714746652509,-511.16561559,0.00027945,2]
[325349875,1714746652519,-345.256235,0.00027945,2]
[325349877,1714746652528,-500.0,0.00027945,2]
[325349879,1714746652538,-9322.34,0.00027945,2]
[325349881,1714746652547,-500.0,0.00027945,2]
[325349883,1714746652556,-500.0,0.00027945,2]
[325349885,1714746652565,-500.0,0.00027945,2]
[325349887,1714746652574,-500.0,0.00027945,2]
[325349889,1714746652584,-500.0,0.00027945,2]
[325349891,1714746652593,-1576.42,0.00027945,2]
[325349892,1714746652602,-500.0,0.00027945,2]
[325349894,1714746652613,-500.0,0.00027945,30]
[325349896,1714746652623,-500.0,0.00027945,2]
[325349898,1714746652632,-500.0,0.00027945,2]
[325349900,1714746652642,-1772.75,0.00027945,2]
[325349902,1714746652652,-990.6611745,0.00028,2]
[325349904,1714746652661,-221.07032047,0.00028,2]
[325349906,1714746652670,-176.5770789,0.00028029,2]
[325349908,1714746652681,-613.27,0.000281,2]
[325349910,1714746652691,-1000.0,0.000282,3]
[325349912,1714746652701,-283.0,0.000282,2]
[325349914,1714746652710,-500.0,0.00028219,2]
[325349916,1714746652720,-500.0,0.00028219,2]
[325349918,1714746652729,-500.0,0.00028219,2]
[325349928,1714746652838,-231.70926252,0.00028219,2]
[325349929,1714746652848,-721.72,0.00028219,2]
[325349930,1714746652857,-500.0,0.00028219,2]
[325349931,1714746652866,-721.44,0.00028219,2]
[325349932,1714746652877,-500.0,0.00028219,2]
[325349933,1714746652887,-500.0,0.00028219,2]
[325349934,1714746652896,-500.0,0.00028219,2]
[325349935,1714746652905,-500.0,0.00028219,2]
[325349936,1714746652915,-502.51391635,0.00028219,2]
[325349937,1714746652926,-500.0,0.00028219,2]
[325349938,1714746652935,-577.40896779,0.00028219,2]
[325349939,1714746652944,-500.0,0.00028219,2]
[325349940,1714746652953,-500.0,0.00028219,2]
[325349941,1714746652963,-1000.0,0.00028219,2]
[325349942,1714746652972,-500.0,0.00028219,2]
[325349943,1714746652983,-500.0,0.00028219,2]
[325349944,1714746652992,-159.90372699,0.00028219,2]
[325349945,1714746653415,-340.09627301,0.00028219,2]
[325349946,1714746653426,-500.0,0.00028219,2]
[325349947,1714746653436,-501.1,0.00028219,2]
[325349948,1714746653445,-500.0,0.00028219,2]
[325349949,1714746653454,-500.0,0.00028219,2]
[325349950,1714746653464,-500.0,0.00028219,2]
[325349951,1714746653474,-504.4,0.00028219,2]
[325349952,1714746653483,-505.70333162,0.00028219,2]
[325349953,1714746653493,-500.0,0.00028219,2]
[325349954,1714746653503,-500.0,0.00028219,2]
[325349955,1714746653513,-500.0,0.00028219,2]
[325349956,1714746653523,-500.0,0.00028219,2]
[325349957,1714746653533,-304.70039537,0.00028219,2]
[325349960,1714746654257,-1330.21985656,0.00027387,3]
[325349961,1714746654269,-549.90202406,0.00027387,3]
[325352475,1714746722613,3000.0,0.0002,2]
[325352480,1714746897673,5000.0,0.0002,2]
[325352481,1714746940245,3000.0,0.0002,2]
[325352482,1714746954945,3000.0,0.0002,2]
[325352485,1714747642114,-154.69061876,0.00020812,2]
[325352486,1714747642137,-165.78379121,0.00020813,2]
[325352487,1714747642158,-379.86860564,0.00020913,4]
[325352488,1714747642178,-2102.35981509,0.00020913,2]
[325352489,1714747642199,-29192.63803003,0.00020913,2]
[325352490,1714747642221,-166.666666,0.00021918,2]
[325352491,1714747642241,-166.666666,0.00022431,2]
[325352492,1714747642262,-166.666666,0.00022944,2]
[325352493,1714747642282,-714.56650019,0.00023,2]
[325352494,1714747642307,-166.666666,0.00023456,2]
[325352495,1714747642327,-166.666666,0.00023969,2]
[325352496,1714747642347,-166.666666,0.00024482,2]
[325352497,1714747642368,-757.41261472,0.00025,2]
[325352498,1714747642388,-493.0,0.00025554,2]
[325352499,1714747642408,-150.0,0.00025554,2]
[325352500,1714747642428,-1148.1,0.0002675,3]
[325352501,1714747642448,-153.0,0.00026984,2]
[325352502,1714747642470,-166.666666,0.00026986,2]
[325352503,1714747642489,-477.52,0.0002699,3]
[325352504,1714747642508,-156.0,0.00027,2]
[325352505,1714747642530,-15432.96473452,0.00027,2]
[325352506,1714747642550,-3412.55475924,0.00027,2]
[325352507,1714747642573,-9381.55295255,0.00027,2]
[325352508,1714747642595,-5000.0,0.00027122,2]
[325352509,1714747642615,-153.0,0.00027123,2]
[325352510,1714747642640,-153.0,0.00027123,2]
[325352511,1714747642660,-153.0,0.00027123,2]
[325352512,1714747642680,-153.0,0.00027123,2]
[325352513,1714747642700,-153.0,0.00027123,2]
[325352514,1714747642721,-153.0,0.00027123,2]
[325352515,1714747642739,-153.0,0.00027123,2]
[325352516,1714747642759,-217.71147656,0.00027185,2]
[325352517,1714747642779,-2000.0,0.00027195,2]
[325352518,1714747642800,-7941.66154308,0.0002727,2]
[325352519,1714747642819,-8107.79,0.00027285,3]
[325352520,1714747642839,-6756.49,0.00027285,3]
[325352521,1714747642861,-9912.4178734,0.00027295,5]
[325352522,1714747642880,-56982.97548397,0.00027295,2]
[325352523,1714747649100,-156.0,0.00027,2]
[325352524,1714747649120,-74743.35505,0.00027295,2]
[325352525,1714747649147,-2280.22886852,0.00027295,2]
[325352558,1714747833036,-154.69061876,0.00025202,2]
[325352559,1714747833046,-714.56650019,0.00025203,2]
[325352560,1714747833203,-1052.4,0.00026775,3]
[325352561,1714747833213,-520.31134439,0.00026899,2]
[325352562,1714747833224,-17546.18119124,0.00027,2]
[325352563,1714747833233,-9381.55295255,0.00027193,2]
[325352564,1714747833243,-5000.0,0.00027194,2]
[325352565,1714747833253,-2000.0,0.00027195,2]
[325352566,1714747833263,-38529.65244287,0.00027195,3]
[325352567,1714747833274,-569.0,0.00027195,3]
[325352568,1714747833285,-7621.01947029,0.00027195,3]
[325352572,1714747833418,-8835.32808684,0.00027195,3]
[325352574,1714747833427,-5630.41,0.00027264,3]
[325352576,1714747833437,-7941.66154308,0.0002727,2]
[325352578,1714747833446,-5630.41,0.00027274,3]
[325352580,1714747833455,-48764.51298288,0.00027292,2]
[325352582,1714747833466,-3937.36815683,0.00027292,2]
[325352584,1714747833477,-1719.66786481,0.00027292,2]
[325352732,1714747839062,-500.0,0.00027194,2]
[325352734,1714747839072,-500.0,0.00027194,2]
[325352736,1714747839081,-500.0,0.00027194,2]
[325352738,1714747839090,-500.0,0.00027194,2]
[325352740,1714747839100,-500.0,0.00027194,2]
[325352742,1714747839109,-500.0,0.00027194,2]
[325352744,1714747839118,-500.0,0.00027194,2]
[325352746,1714747839129,-500.0,0.00027194,2]
[325352748,1714747839138,-500.0,0.00027194,2]
[325352750,1714747839148,-500.0,0.00027194,2]
[325352752,1714747839158,-500.0,0.00027194,2]
[325352754,1714747839168,-500.0,0.00027194,2]
[325352756,1714747839178,-500.0,0.00027194,2]
[325352758,1714747839188,-500.0,0.00027194,2]
[325352760,1714747839197,-500.0,0.00027194,2]
[325352762,1714747839207,-500.0,0.00027194,2]
[325352764,1714747839216,-500.0,0.00027194,2]
[325352766,1714747839226,-500.0,0.00027194,2]
[325352768,1714747839235,-500.0,0.00027194,2]
[325352770,1714747839245,-500.0,0.00027194,2]
[325352773,1714747839254,-500.0,0.00027194,2]
[325352775,1714747839264,-500.0,0.00027194,2]
[325352777,1714747839273,-500.0,0.00027194,2]
[325352779,1714747839282,-500.0,0.00027194,2]
[325352780,1714747839291,-500.0,0.00027194,2]
[325352782,1714747839300,-500.0,0.00027194,2]
[325352784,1714747839310,-500.0,0.00027194,2]
[325352786,1714747839319,-500.0,0.00027194,2]
[325352789,1714747839329,-500.0,0.00027194,2]
[325352790,1714747839338,-500.0,0.00027194,2]
[325352792,1714747839348,-500.0,0.00027194,2]
[325352795,1714747839357,-500.0,0.00027194,2]
[325352797,1714747839369,-500.0,0.00027194,2]
[325352799,1714747839381,-500.0,0.00027194,2]
[325352801,1714747839390,-500.0,0.00027194,2]
[325352803,1714747839399,-272.60209069,0.00027194,2]
[325352805,1714747839411,-227.39790931,0.00027194,2]
[325352807,1714747839421,-500.0,0.00027194,2]
[325352809,1714747839430,-500.0,0.00027194,2]
[325352811,1714747839439,-500.0,0.00027194,2]
[325352813,1714747839449,-500.0,0.00027194,2]
[325352815,1714747839459,-500.0,0.00027194,2]
[325352817,1714747839468,-500.0,0.00027194,2]
[325352819,1714747839477,-500.0,0.00027194,2]
[325352821,1714747839486,-500.0,0.00027194,2]
[325352823,1714747839495,-500.0,0.00027194,2]
[325352825,1714747839505,-500.0,0.00027194,2]
[325352827,1714747839514,-500.0,0.00027194,2]
[325352829,1714747839523,-500.0,0.00027194,2]
[325352831,1714747839533,-332.171,0.00027194,2]
[325352833,1714747839542,-500.0,0.00027194,2]
[325352835,1714747839551,-500.0,0.00027194,2]
[325352836,1714747839561,-500.0,0.00027194,2]
[325352838,1714747839571,-500.0,0.00027194,2]
[325352840,1714747839581,-3753.6,0.00027282,3]
[325352842,1714747839599,-561121.16453754,0.00027292,2]
[325352844,1714747839611,-163428.72546096,0.00027292,2]
[325353015,1714747841179,-1619.31722882,0.00027292,2]
[325353516,1714747847064,-7063.21671536,0.00027292,2]
[325353518,1714747847073,-12698.94681491,0.00027293,5]
[325354913,1714748197616,273.37336231,9.9e-05,2]
[325354914,1714748205845,273.37336231,9.9e-05,2]
[325354915,1714748214729,273.37336231,9.9e-05,2]
[325354916,1714748223379,273.37336231,9.9e-05,2]
[325354917,1714748233005,177.55544671,9.9e-05,2]
[325354918,1714748260082,364.1242396,9.9e-05,2]
[325354920,1714748276527,16110.23752022,9.9e-05,2]
[325354921,1714748278080,364.1242396,9.9e-05,2]
[325354922,1714748294087,364.1242396,9.9e-05,2]
[325354923,1714748298348,3304.65198986,0.0001999,2]
[325354924,1714748298536,5404.60645162,9.9e-05,2]
[325354925,1714748312094,274.9709661,9.9e-05,2]
[325354927,1714748469523,583.80419576,9.999e-05,2]
[325354928,1714748500463,2457.99993964,9.999e-05,2]
[325354929,1714748514737,206.41879743,9.999e-05,2]
[325354939,1714748914213,500.0,0.00019178,2]
[325354940,1714748914253,500.0,0.00019178,2]
[325354941,1714748914287,255.82996394,0.00019178,2]
[325354942,1714748914326,500.0,0.00019178,2]
[325354943,1714748914364,500.0,0.00019178,2]
[325354944,1714748914405,500.0,0.00019178,2]
[325354945,1714748914444,500.0,0.00019178,2]
[325354946,1714748914486,500.0,0.00019178,2]
[325354947,1714748914524,500.0,0.00019178,2]
[325354948,1714748914558,500.0,0.00019178,2]
[325354949,1714748914603,500.0,0.00019178,2]
[325354950,1714748914642,500.0,0.00019178,2]
[325354951,1714748914680,500.0,0.00019178,2]
[325354952,1714748914715,500.0,0.00019178,2]
[325354953,1714748914751,500.0,0.00019178,2]
[325354954,1714748914791,500.0,0.00019178,2]
[325354955,1714748914826,500.0,0.00019178,2]
[325354956,1714748914859,500.0,0.00019178,2]
[325354957,1714748914897,500.0,0.00019178,2]
[325354958,1714748914936,500.0,0.00019178,2]
[325354959,1714748914989,500.0,0.00019178,2]
[325354960,1714748915029,500.0,0.00019178,2]
[325354961,1714748915085,500.0,0.00019178,2]
[325354962,1714748915116,493.864703,0.00019178,2]
[325354963,1714748915165,500.0,0.00019178,2]
[325354964,1714748915209,500.0,0.00019178,2]
[325354965,1714748915253,500.0,0.00019178,2]
[325354966,1714748915304,500.0,0.00019178,2]
[325354967,1714748915339,500.0,0.00019178,2]
[325354968,1714748915374,500.0,0.00019178,2]
[325354969,1714748915544,500.0,0.00019178,2]
[325354970,1714748915581,500.0,0.00019178,2]
[325354971,1714748920113,583.80419576,0.00019177,2]
[325354972,1714748930466,500.0,0.00019178,2]
[325354973,1714748930519,500.0,0.00019178,2]
[325354974,1714748930577,500.0,0.00019178,2]
[325354975,1714748971902,154.69061876,9.999e-05,2]
[325354978,1714749015845,284.07927972,9.999e-05,2]
[325354979,1714749017279,1379.02545459,9.999e-05,2]
[325355014,1714749033288,-166.666666,0.00021918,2]
[325355015,1714749033297,-166.666666,0.00022431,2]
[325355016,1714749033307,-166.666666,0.00022944,2]
[325355017,1714749033317,-166.666666,0.00023456,2]
[325355018,1714749033326,-30.923336,0.00023969,2]
[325355019,1714749033338,-135.74333,0.00023969,2]
[325355020,1714749033347,-166.666666,0.00024482,2]
[325355021,1714749033358,-723.81107146,0.00025,2]
[325355022,1714749033367,-493.0,0.00025554,2]
[325355023,1714749033377,-150.0,0.00025554,2]
[325355024,1714749033387,-306.0,0.00025918,2]
[325355025,1714749033396,-153.0,0.00025918,2]
[325355026,1714749033406,-153.0,0.00025918,2]
[325355027,1714749033416,-153.0,0.00025918,2]
[325355028,1714749033426,-153.0,0.00025918,2]
[325355029,1714749033437,-153.0,0.0002674,2]
[325355030,1714749033447,-153.0,0.0002674,2]
[325355031,1714749033456,-153.0,0.0002674,2]
[325355032,1714749033465,-153.0,0.0002674,2]
[325355033,1714749033474,-306.0,0.0002674,2]
[325355034,1714749033484,-153.0,0.0002674,2]
[325355035,1714749033493,-153.0,0.0002674,2]
[325355036,1714749033503,-1284.3,0.00026744,3]
[325355037,1714749033513,-185.30014995,0.0002694,2]
[325355038,1714749033522,-166.666666,0.00026986,2]
[325355039,1714749033532,-206.18739777,0.00026998,2]
[325355040,1714749033542,-200.52962551,0.00026998,2]
[325355041,1714749033552,-658.6887612,0.00026998,2]
[325355042,1714749033561,-1492.097253,0.00026998,2]
[325355043,1714749033571,-154.69061876,0.00026998,2]
[325355044,1714749033581,-1378.33540657,0.00026998,2]
[325355045,1714749033591,-283.8285015,0.00026998,2]
[325355046,1714749033601,-583.38798482,0.00026999,2]
[325355047,1714749033610,-44745.20310932,0.00027,2]
[325355048,1714749033620,-9381.55295255,0.00027,2]
[325355049,1714749033630,-335.53739023,0.00027,2]
[325355079,1714749038668,-500.0,0.00026999,2]
[325355080,1714749038679,-500.0,0.00026999,2]
[325355082,1714749038689,-549.3864703,0.00026999,2]
[325355083,1714749038702,-4664.46260977,0.00027,2]
[325355084,1714749038711,-8532.81812051,0.00027,2]
[325355085,1714749038721,-2515.85,0.00027,2]
[325355086,1714749038731,-156.0,0.00027,2]
[325355087,1714749038741,-1002.34599611,0.00027,2]
[325355088,1714749038752,-7765.16392677,0.0002705,5]
[325355089,1714749038762,-204.0119045,0.00027053,2]
[325355090,1714749038771,-7949.82,0.00027072,3]
[325355091,1714749038780,-6110.02,0.00027082,3]
[325355092,1714749038790,-9539.78,0.00027082,3]
[325355093,1714749038800,-680568.33235387,0.00027091,2]
[325355125,1714749043360,-107085.64059333,0.00027091,2]
[325355126,1714749043371,-55555.0,0.00027092,3]
[325355129,1714749043381,-185.30014994,0.00027118,2]
[325355131,1714749043391,-2910.91601451,0.0002718,2]
[325355133,1714749043400,-2000.0,0.00027193,2]
[325355135,1714749043410,-269.90868275,0.00027195,2]
[325355137,1714749043419,-7941.66154308,0.0002727,2]
[325355139,1714749043428,-347.03042653,0.0002729,2]
[325355140,1714749043438,-185.30014994,0.00027295,2]
[325355143,1714749043450,-1772.099999,0.0002738,2]
[325355145,1714749043459,-488.51147253,0.00027394,2]
[325355147,1714749043469,-208.20456321,0.00027394,2]
[325355149,1714749043479,-155.41220515,0.00027395,2]
[325355151,1714749043488,-847.31053371,0.00027395,30]
[325355153,1714749043498,-472.70988666,0.00027396,2]
[325355155,1714749043507,-44150.67053125,0.00027396,2]
[325355157,1714749043517,-500.0,0.00027397,2]
[325355159,1714749043527,-500.0,0.00027397,2]
[325355161,1714749043537,-500.0,0.00027397,2]
[325355163,1714749043547,-500.0,0.00027397,2]
[325355165,1714749043556,-500.0,0.00027397,2]
[325355167,1714749043566,-516.23418292,0.00027397,2]
[325355169,1714749043575,-500.0,0.00027397,2]
[325355171,1714749043585,-500.0,0.00027397,2]
[325355173,1714749043595,-500.0,0.00027397,2]
[325355175,1714749043604,-500.0,0.00027397,2]
[325355177,1714749043613,-500.0,0.00027397,2]
[325355179,1714749043624,-1639.99,0.00027397,2]
[325355181,1714749043633,-500.0,0.00027397,2]
[325355183,1714749043642,-500.0,0.00027397,2]
[325355185,1714749043652,-225.54990279,0.00027397,2]
[325355187,1714749043661,-500.0,0.00027397,2]
[325355189,1714749043670,-500.0,0.00027397,2]
[325355191,1714749043679,-500.0,0.00027397,2]
[325355192,1714749043689,-500.0,0.00027397,2]
[325355194,1714749043699,-500.0,0.00027397,2]
[325355196,1714749043708,-613.17657751,0.00027397,2]
[325355198,1714749043718,-500.0,0.00027397,2]
[325355200,1714749043727,-500.0,0.00027397,2]
[325355202,1714749043736,-500.0,0.00027397,2]
[325355204,1714749043745,-500.0,0.00027397,2]
[325355206,1714749043755,-500.0,0.00027397,2]
[325355208,1714749043764,-645.8,0.00027397,2]
[325355210,1714749043773,-493.99867445,0.00027397,2]
[325355212,1714749043783,-500.0,0.00027397,2]
[325355214,1714749043793,-500.0,0.00027397,2]
[325355217,1714749043803,-500.0,0.00027397,2]
[325355219,1714749043812,-500.0,0.00027397,2]
[325355220,1714749043823,-500.0,0.00027397,2]
[325355222,1714749043833,-506.78989974,0.00027397,2]
[325355225,1714749043842,-482.76660965,0.00027397,2]
[325355227,1714749043852,-500.0,0.00027397,2]
[325355229,1714749043862,-500.0,0.00027397,2]
[325355231,1714749043871,-500.0,0.00027397,2]
[325355233,1714749043881,-500.0,0.00027397,2]
[325355236,1714749043891,-500.0,0.00027397,2]
[325355237,1714749043900,-500.0,0.00027397,2]
[325355239,1714749043910,-500.0,0.00027397,2]
[325355242,1714749043920,-500.0,0.00027397,2]
[325355243,1714749043929,-500.0,0.00027397,2]
[325355245,1714749043946,-500.0,0.00027397,2]
[325355247,1714749043955,-500.0,0.00027397,2]
[325355249,1714749043965,-500.0,0.00027397,2]
[325355251,1714749043976,-500.0,0.00027397,2]
[325355254,1714749043987,-500.0,0.00027397,2]
[325355256,1714749043997,-502.73119952,0.00027397,2]
[325355258,1714749044007,-500.0,0.00027397,2]
[325355260,1714749044017,-500.0,0.00027397,2]
[325355261,1714749044027,-500.0,0.00027397,2]
[325355264,1714749044037,-500.0,0.00027397,2]
[325355266,1714749044047,-500.0,0.00027397,2]
[325355268,1714749044056,-500.0,0.00027397,2]
[325355270,1714749044066,-500.0,0.00027397,2]
[325355272,1714749044076,-500.0,0.00027397,2]
[325355274,1714749044086,-500.0,0.00027397,2]
[325355275,1714749044096,-1625.03,0.00027397,2]
[325355277,1714749044105,-500.0,0.00027397,2]
[325355279,1714749044115,-500.0,0.00027397,2]
[325355282,1714749044124,-500.0,0.00027397,2]
[325355283,1714749044134,-243.14770334,0.00027397,2]
[325355285,1714749044144,-661.57,0.00027397,2]
[325355287,1714749044153,-500.0,0.00027397,2]
[325355289,1714749044162,-500.0,0.00027397,2]
[325355291,1714749044172,-661.32,0.00027397,2]
[325355293,1714749044181,-500.0,0.00027397,2]
[325355295,1714749044191,-500.0,0.00027397,2]
[325355297,1714749044201,-433.35918705,0.00027397,2]
[325355300,1714749044211,-500.0,0.00027397,2]
[325355302,1714749044221,-500.0,0.00027397,2]
[325355304,1714749044230,-500.0,0.00027397,2]
[325355306,1714749044239,-500.0,0.00027397,2]
[325355308,1714749044249,-500.0,0.00027397,2]
[325355310,1714749044258,-500.0,0.00027397,2]
[325355312,1714749044268,-500.0,0.00027397,2]
[325355314,1714749044277,-500.0,0.00027397,2]
[325355316,1714749044287,-336.65984201,0.00027397,2]
[325355318,1714749044296,-500.0,0.00027397,2]
[325355320,1714749044305,-1743.64,0.00027397,2]